[Event "XVII MetLife Najdorf Open 2017"]
[Site "Warsaw"]
[Date "2017.07.16"]
[Round "8"]
[White "Mis, Mieszko"]
[Black "Heinemann, Josefine"]
[Result "1/2-1/2"]
[ECO "A48"]
[WhiteElo "2137"]
[BlackElo "2294"]
[Annotator "NA"]
[PlyCount "108"]
[EventDate "2017.??.??"]
[EventType "swiss"]
[EventCountry "POL"]
[SourceTitle "playchess.com"]
[Source "ChessBase"]
[SourceQuality "1"]
[TimeControl "40/5400+30:1800+30"]

1. d4 {[%emt 0:00:00]} Nf6 {[%emt 0:00:05]} 2. Nf3 {[%emt 0:00:00]} g6 {[%emt 0:00:09]} 3. Nbd2 {[%emt 0:00:01]} c5 {[%emt 0:00:14]} 4. dxc5 {[%emt 0:00:14]} Qa5 {[%emt 0:00:06]} 5. a3 {[%emt 0:00:05]} Qxc5 {[%emt 0:00:03]} 6. b4 {[%emt 0:00:03]} Qc7 {[%emt 0:00:05]} 7. Bb2 {[%emt 0:00:03]} Bg7 {[%emt 0:00:04]} 8. e3 {[%emt 0:00:05]} d6 {[%emt 0:01:14]} 9. Be2 {[%emt 0:01:16]} O-O {[%emt 0:00:32]} 10. O-O {[%emt 0:01:42]} b6 {[%emt 0:00:42]} 11. c4 {[%emt 0:02:20]} Bb7 {[%emt 0:02:03]} 12. Rc1 {[%emt 0:03:49]} Nbd7 {[%emt 0:00:19]} 13. Qb3 {[%emt 0:01:28]} Rac8 {[%emt 0:04:02]} 14. Rfd1 {[%emt 0:00:29]} Qb8 {[%emt 0:01:54] A48: 1 d4 Nf6 2 Nf3 g6: Torre, London and Colle Systems} 15. Nd4 {[%emt 0:08:55]} (15. Bf1 Rfd8 16. Nd4 Qa8 17. Ba1 a6 18. Rc2 Rc7 19. Rdc1 Rdc8 20. Ne2 d5 21. Nf4 e6 22. cxd5 Rxc2 23. Rxc2 Nxd5 24. Bxg7 Kxg7 {½-½ (52) Bukavshin,I (2657)-Gelfand,B (2731) Moscow 2015}) 15... a6 {[%emt 0:06:02]} 16. Bf3 {[%emt 0:05:23]} Rc7 {[%emt 0:07:13]} 17. Bxb7 {[%emt 0:18:05]} Qxb7 {[%emt 0:01:18]} 18. Qd3 $146 {[%emt 0:04:57]} ({Predecessor:} 18. Rc2 Rfc8 19. Rdc1 h6 20. h3 Ne4 21. N4f3 Nxd2 22. Nxd2 {½-½ (65) Vunder,A (2255)-Smirnov,A (2385) St Petersburg 2007}) 18... Rfc8 {[%emt 0:05:43]} 19. Qe2 {[%emt 0:04:30]} Ne4 {[%emt 0:04:39]} 20. N2b3 {[%emt 0:16:23]} Ne5 {[%emt 0:04:39]} 21. f3 {[%emt 0:00:07]} Nf6 {[%emt 0:01:25]} 22. Nd2 {[%emt 0:00:05]} Nc6 {[%emt 0:05:41]} 23. N2b3 {[%emt 0:01:41]} Nd7 {[%emt 0:04:27]} 24. f4 {[%emt 0:06:58]} Nf6 {[%emt 0:02:56]} 25. Nxc6 {[%emt 0:09:28]} Qxc6 {[%emt 0:01:55]} 26. b5 {[%emt 0:00:14]} axb5 {[%emt 0:01:17]} 27. cxb5 {[%emt 0:01:33]} Qe4 {[%emt 0:00:28]} 28. Rxc7 {[%emt 0:03:32]} Rxc7 {[%emt 0:00:11]} 29. Nd2 {[%emt 0:02:08]} Qa4 {[%emt 0:04:16]} 30. Rc1 {[%emt 0:00:14]} Rxc1+ {[%emt 0:02:15]} 31. Bxc1 {[%emt 0:00:07]} d5 {[%emt 0:01:20]} 32. Bb2 {[%emt 0:04:48]} Qc2 {[%emt 0:00:45]} 33. Bxf6 {[%emt 0:00:32]} Bxf6 {[%emt 0:00:04]} 34. Kf2 {[%emt 0:00:50]} Bb2 {[%emt 0:05:46]} 35. a4 {[%emt 0:03:58]} Bc3 {[%emt 0:03:57]} 36. Nf3 {[%emt 0:00:30]} Qxa4 {[%emt 0:00:03]} 37. Qd3 {[%emt 0:00:39]} Qc4 {[%emt 0:01:52]} 38. Qxc4 {[%emt 0:00:17]} dxc4 {[%emt 0:00:04]} 39. e4 {[%emt 0:01:11]} Kf8 {[%emt 0:02:06]} 40. Ke3 {[%emt 0:00:00]} Bb2 {[%emt 0:01:42]} 41. Kd2 {[%emt 0:01:23]} Ke8 {[%emt 0:01:51]} 42. Kc2 {[%emt 0:00:14]} c3 {[%emt 0:05:55]} 43. Ne5 {[%emt 0:04:00]} Ba3 {[%emt 0:02:44]} 44. Kxc3 {[%emt 0:02:05]} Bc5 {[%emt 0:00:49]} 45. Nf3 {[%emt 0:02:29]} Be3 {[%emt 0:03:17]} 46. g3 {[%emt 0:00:58]} f6 {[%emt 0:00:49]} 47. Kc4 {[%emt 0:08:24]} Kd7 {[%emt 0:00:11]} 48. f5 {[%emt 0:00:05]} e6 {[%emt 0:05:16]} 49. Kd3 {[%emt 0:02:21]} Bf2 {[%emt 0:01:50]} 50. fxg6 {[%emt 0:04:36]} hxg6 {[%emt 0:00:04]} 51. e5 {[%emt 0:00:02]} f5 {[%emt 0:00:43]} 52. Ke2 $11 {[%emt 0:00:13]} Bc5 {[%emt 0:00:33]} 53. h3 {[%emt 0:00:22]} Ke7 {[%emt 0:02:11]} 54. g4 {[%emt 0:01:28]} fxg4 {[%emt 0:00:06]} 1/2-1/2

[Event "XVII MetLife Najdorf Open 2017"]
[Site "Warsaw"]
[Date "2017.07.16"]
[Round "8"]
[White "Baasansuren, Erdene"]
[Black "Chylewski, Patryk"]
[Result "0-1"]
[ECO "A40"]
[WhiteElo "2128"]
[BlackElo "2275"]
[Annotator "ChessBase"]
[PlyCount "116"]
[EventDate "2017.??.??"]
[EventType "swiss"]
[EventCountry "POL"]
[SourceTitle "playchess.com"]
[Source "ChessBase"]
[SourceQuality "1"]
[TimeControl "40/5400+30:1800+30"]

1. d4 {[%emt 0:00:00]} Nf6 {[%emt 0:00:07]} 2. c4 {[%emt 0:00:10]} e6 {[%emt 0:00:12]} 3. g3 {[%emt 0:01:15]} d5 {[%emt 0:00:13]} 4. Nf3 {[%emt 0:01:35]} Bb4+ {[%emt 0:00:34]} 5. Bd2 {[%emt 0:01:38]} Bd6 {[%emt 0:00:59]} 6. Bg2 {[%emt 0:03:22]} c6 {[%emt 0:00:50]} 7. O-O {[%emt 0:02:34]} Nbd7 {[%emt 0:00:47]} 8. Qc2 {[%emt 0:03:56]} O-O {[%emt 0:01:19]} 9. Nc3 {[%emt 0:09:14]} dxc4 {[%emt 0:04:23]} 10. e4 {[%emt 0:05:41]} e5 {[%emt 0:03:58]} 11. a4 {[%emt 0:11:39]} exd4 {[%emt 0:16:40]} 12. Nxd4 {[%emt 0:01:54]} Ne5 {[%emt 0:02:32]} 13. Nce2 {[%emt 0:11:23]} c5 {[%emt 0:14:35]} 14. Nb5 {[%emt 0:02:21]} Bb8 {[%emt 0:13:47]} 15. Nf4 {[%emt 0:10:19]} Bg4 {[%emt 0:05:14]} 16. f3 {[%emt 0:05:00]} Bd7 {[%emt 0:01:16]} 17. Na3 {[%emt 0:03:19]} Bxa4 {[%emt 0:04:37]} 18. Qxa4 {[%emt 0:09:05]} Qxd2 {[%emt 0:00:07]} 19. Rf2 {[%emt 0:00:58]} Qb4 {[%emt 0:00:53]} 20. Qd1 {[%emt 0:07:59]} Bc7 {[%emt 0:02:02]} 21. Bf1 {[%emt 0:02:36]} Rfd8 {[%emt 0:04:16]} 22. Nd5 {[%emt 0:01:53]} Nxd5 {[%emt 0:01:04]} 23. exd5 {[%emt 0:00:07]} Qb3 {[%emt 0:09:21]} 24. f4 {[%emt 0:02:09]} Qxd1 {[%emt 0:02:18]} 25. Rxd1 {[%emt 0:00:03]} Nd3 {[%emt 0:05:41]} 26. Bxd3 {[%emt 0:01:32]} cxd3 {[%emt 0:00:05]} 27. Rxd3 {[%emt 0:00:05]} a6 {[%emt 0:00:25]} 28. Rc2 {[%emt 0:01:29]} b5 {[%emt 0:00:57]} 29. b3 {[%emt 0:00:38]} Ba5 {[%emt 0:02:09]} 30. Re2 {[%emt 0:00:25]} Rd7 {[%emt 0:00:31]} 31. Nc2 {[%emt 0:00:35]} c4 {[%emt 0:01:42]} 32. bxc4 {[%emt 0:00:21]} bxc4 {[%emt 0:00:04]} 33. Rd1 {[%emt 0:00:18]} Kf8 {[%emt 0:01:53]} 34. Kg2 {[%emt 0:00:41]} c3 {[%emt 0:00:44]} 35. Re4 {[%emt 0:00:38]} Rb8 {[%emt 0:00:26]} 36. Kf3 {[%emt 0:00:30]} Rb2 {[%emt 0:00:56]} 37. Re2 {[%emt 0:00:26]} Rb5 {[%emt 0:00:28]} 38. Ne3 {[%emt 0:00:36]} Bb4 {[%emt 0:00:24]} 39. Rc2 {[%emt 0:00:28]} a5 {[%emt 0:00:44]} 40. Ra1 {[%emt 0:00:00]} Rb8 {[%emt 0:00:36]} 41. Raa2 {[%emt 0:22:35]} Re8 {[%emt 0:09:15]} 42. Ra4 {[%emt 0:02:38]} f5 {[%emt 0:06:22]} 43. h3 {[%emt 0:01:22]} g6 {[%emt 0:01:40]} 44. g4 {[%emt 0:01:06]} Rde7 {[%emt 0:03:23]} 45. Nc4 {[%emt 0:01:11]} Re4 {[%emt 0:01:40]} 46. Ne5 {[%emt 0:04:06]} Rd4 {[%emt 0:02:20]} 47. gxf5 {[%emt 0:00:14]} gxf5 {[%emt 0:00:05]} 48. Nd7+ {[%emt 0:01:20]} Ke7 {[%emt 0:00:26]} 49. Ne5 {[%emt 0:00:24]} Kd6 {[%emt 0:02:08]} 50. Re2 {[%emt 0:00:29]} Kxd5 {[%emt 0:00:38]} 51. Raa2 {[%emt 0:00:09]} Rd2 {[%emt 0:00:55]} 52. Ke3 {[%emt 0:00:57]} Bc5+ {[%emt 0:01:31]} 53. Kf3 {[%emt 0:00:13]} Rxe2 {[%emt 0:00:47]} 54. Kxe2 {[%emt 0:00:29]} Ke4 {[%emt 0:00:35]} 55. Nd7 {[%emt 0:00:48]} Kxf4+ {[%emt 0:00:28]} 56. Kf1 {[%emt 0:00:30]} Bd4 {[%emt 0:00:46]} 57. Ra4 {[%emt 0:00:24]} Ke3 {[%emt 0:00:19]} 58. Ra2 {[%emt 0:00:36]} Kd3 {[%emt 0:00:15]} 0-1

[Event "XVII MetLife Najdorf Open 2017"]
[Site "Warsaw"]
[Date "2017.07.16"]
[Round "8"]
[White "Domanski, Lukasz"]
[Black "Kowalczyk, Rafal"]
[Result "1-0"]
[ECO "C28"]
[WhiteElo "2113"]
[BlackElo "2240"]
[Annotator "NA"]
[PlyCount "99"]
[EventDate "2017.??.??"]
[EventType "swiss"]
[EventCountry "POL"]
[SourceTitle "playchess.com"]
[Source "ChessBase"]
[SourceQuality "1"]
[TimeControl "40/5400+30:1800+30"]

1. e4 {[%emt 0:00:00]} e5 {[%emt 0:00:08]} 2. Bc4 {[%emt 0:00:00]} Nc6 {[%emt 0:00:47]} 3. Nc3 {[%emt 0:00:00]} Nf6 {[%emt 0:00:10]} 4. d3 {[%emt 0:00:00]} Na5 {[%emt 0:00:11]} 5. Nge2 {[%emt 0:00:01]} c6 {[%emt 0:05:21]} 6. a4 {[%emt 0:00:04]} Nxc4 {[%emt 0:00:51] C28: Vienna Game: 2...Nf6 3 Bc4 Nc6} 7. dxc4 {[%emt 0:00:14]} Bc5 {[%emt 0:01:11]} (7... Be7 8. O-O d6 9. b3 Qc7 10. Qd3 O-O 11. h3 Be6 12. Qf3 Rfd8 13. Rd1 Qa5 14. Bd2 Qc7 15. Be3 Qa5 16. Bd2 Qc7 17. Be3 Qa5 18. Bd2 {½-½ (18) Martin Molinero,R (2408)-Cavajda,I (2468) ICCF email 2014}) 8. f3 {[%emt 0:00:07]} d6 {[%emt 0:00:24]} 9. Qd3 {[%emt 0:00:34]} Be6 {[%emt 0:01:50]} 10. b3 {[%emt 0:01:09]} O-O {[%emt 0:09:47]} 11. Be3 {[%emt 0:02:22]} Bb4 $146 {[%emt 0:00:08]} ({Predecessor:} 11... Qa5 12. Kf2 Nd7 13. Ng3 g6 14. Rhd1 Rad8 15. Bxc5 Nxc5 16. Qe3 Rd7 17. Rab1 Qb4 18. Nge2 b6 19. Na2 {½-½ (19) Wolff,C (2102)-Slamenik,J (2164) LSS email 2010}) 12. O-O-O {[%emt 0:07:58]} a6 {[%emt 0:03:35]} 13. Kb2 {[%emt 0:07:55]} b5 {[%emt 0:02:16]} 14. cxb5 {[%emt 0:02:04]} axb5 {[%emt 0:00:23]} 15. Na2 {[%emt 0:02:28]} Bc5 {[%emt 0:37:14]} 16. Bxc5 {[%emt 0:01:24]} dxc5 {[%emt 0:00:05]} 17. Qxd8 {[%emt 0:01:08]} Rfxd8 {[%emt 0:00:06]} 18. axb5 {[%emt 0:04:22]} cxb5 {[%emt 0:00:11]} 19. Nec3 {[%emt 0:04:24]} Rdb8 {[%emt 0:10:11]} 20. Rd6 {[%emt 0:09:18]} Kf8 {[%emt 0:06:04]} 21. Rhd1 {[%emt 0:03:50]} Rb7 {[%emt 0:06:16]} 22. Rc6 {[%emt 0:07:07]} Nd7 {[%emt 0:05:58]} 23. Nd5 {[%emt 0:04:11]} Bxd5 {[%emt 0:01:31]} 24. exd5 {[%emt 0:06:14]} b4 {[%emt 0:05:10]} 25. Nc1 {[%emt 0:04:48]} Rba7 {[%emt 0:00:30]} 26. Nd3 {[%emt 0:01:14]} Ra5 {[%emt 0:00:53]} 27. Kc1 {[%emt 0:02:35]} f6 {[%emt 0:01:57]} 28. Kd2 {[%emt 0:04:40]} R8a6 {[%emt 0:00:08]} 29. Ke3 {[%emt 0:04:15]} Ke7 {[%emt 0:01:10]} 30. Nb2 {[%emt 0:05:49]} Rxc6 {[%emt 0:00:30]} 31. dxc6 {[%emt 0:00:09]} Nb6 {[%emt 0:00:27]} 32. Na4 {[%emt 0:01:58]} Nxa4 {[%emt 0:00:28]} 33. bxa4 {[%emt 0:00:15]} c4 34. Rd7+ {[%emt 0:01:15]} Ke6 {[%emt 0:00:44]} 35. Rxg7 {[%emt 0:02:25]} Rc5 {[%emt 0:00:49]} 36. Rxh7 {[%emt 0:03:47]} b3 {[%emt 0:00:15]} 37. Rb7 {[%emt 0:03:42]} Rxc6 {[%emt 0:00:04]} 38. a5 {[%emt 0:00:47]} Kd5 {[%emt 0:01:14]} 39. cxb3 {[%emt 0:01:53]} cxb3 {[%emt 0:00:28]} 40. Rxb3 {[%emt 0:00:00]} Rc2 {[%emt 0:00:32]} 41. Ra3 {[%emt 0:06:16]} Rxg2 {[%emt 0:11:50]} 42. a6 {[%emt 0:00:22]} Rg8 {[%emt 0:01:17]} 43. a7 {[%emt 0:00:13]} Ra8 {[%emt 0:00:04]} 44. Ra6 {[%emt 0:00:51]} f5 {[%emt 0:00:34]} 45. h4 {[%emt 0:00:55]} Kc5 {[%emt 0:00:19]} 46. h5 {[%emt 0:00:13]} Kb5 {[%emt 0:00:03]} 47. Ra1 {[%emt 0:00:13]} Kb6 {[%emt 0:00:04]} 48. h6 {[%emt 0:00:21]} Kc7 {[%emt 0:00:17]} 49. h7 {[%emt 0:00:15]} Kb7 {[%emt 0:00:02]} 50. Ra2 1-0

[Event "XVII MetLife Najdorf Open 2017"]
[Site "Warsaw"]
[Date "2017.07.16"]
[Round "8"]
[White "Priyanka Nutakki"]
[Black "Niekras, Dawid"]
[Result "1/2-1/2"]
[ECO "B53"]
[WhiteElo "2104"]
[BlackElo "2291"]
[Annotator "NA"]
[PlyCount "88"]
[EventDate "2017.??.??"]
[EventType "swiss"]
[EventCountry "POL"]
[SourceTitle "playchess.com"]
[Source "ChessBase"]
[SourceQuality "1"]
[TimeControl "40/5400+30:1800+30"]

1. e4 {[%emt 0:00:00]} c5 {[%emt 0:00:07]} 2. Nf3 {[%emt 0:00:00]} d6 {[%emt 0:00:05]} 3. d4 {[%emt 0:00:00]} cxd4 {[%emt 0:00:04]} 4. Qxd4 {[%emt 0:00:00]} Nc6 {[%emt 0:00:08]} 5. Bb5 {[%emt 0:00:06]} Bd7 {[%emt 0:00:06]} 6. Bxc6 {[%emt 0:00:08]} Bxc6 {[%emt 0:00:06]} 7. Nc3 {[%emt 0:00:10]} e5 {[%emt 0:01:08]} 8. Qd3 {[%emt 0:01:00]} h6 {[%emt 0:00:15]} 9. Be3 {[%emt 0:06:22]} Nf6 {[%emt 0:00:28]} 10. h3 {[%emt 0:00:13]} Be7 {[%emt 0:00:43]} 11. O-O-O {[%emt 0:01:42]} Qd7 {[%emt 0:23:58]} 12. Nd2 {[%emt 0:09:00]} b5 {[%emt 0:03:03]} 13. Nd5 {[%emt 0:01:54]} Bxd5 {[%emt 0:11:32]} 14. exd5 {[%emt 0:00:04]} O-O {[%emt 0:01:04]} 15. g4 {[%emt 0:05:39]} Qb7 {[%emt 0:02:39]} 16. Nf1 {[%emt 0:05:02]} Rfc8 {[%emt 0:07:41]} 17. Rg1 {[%emt 0:06:13]} Qc7 {[%emt 0:14:15]} 18. Kb1 {[%emt 0:05:22]} Qc4 {[%emt 0:03:25]} 19. Ng3 {[%emt 0:04:27]} Qxd3 {[%emt 0:08:21]} 20. Rxd3 {[%emt 0:00:02]} Rc4 {[%emt 0:01:01]} 21. Nf5 {[%emt 0:04:59]} Bf8 {[%emt 0:00:53]} 22. f3 {[%emt 0:14:35]} Nd7 {[%emt 0:06:48]} 23. Rd2 {[%emt 0:06:18]} a5 {[%emt 0:03:42]} 24. Rf1 {[%emt 0:03:36]} a4 {[%emt 0:04:34]} 25. Rd3 {[%emt 0:08:15]} Rac8 {[%emt 0:01:15]} 26. Rf2 {[%emt 0:00:19]} Kh7 {[%emt 0:01:12]} 27. Ng3 {[%emt 0:01:40]} g6 {[%emt 0:02:33]} 28. h4 {[%emt 0:01:59]} Be7 {[%emt 0:00:55]} 29. Rh2 {[%emt 0:00:13]} h5 {[%emt 0:01:05]} 30. gxh5 {[%emt 0:02:07]} Rxh4 {[%emt 0:00:41]} 31. hxg6+ {[%emt 0:00:36]} fxg6 {[%emt 0:00:47]} 32. Rxh4+ {[%emt 0:00:39]} Bxh4 {[%emt 0:00:02]} 33. Ne4 {[%emt 0:00:01]} Be7 {[%emt 0:00:17]} 34. Bg5 {[%emt 0:01:28]} Bf8 {[%emt 0:00:34]} 35. f4 {[%emt 0:00:42]} Rc4 {[%emt 0:01:22]} 36. Nd2 {[%emt 0:00:08]} Rc8 {[%emt 0:00:48]} 37. Ne4 {[%emt 0:04:08]} Re8 {[%emt 0:00:32]} 38. Rh3+ {[%emt 0:01:34]} Kg8 {[%emt 0:00:05]} 39. Bf6 {[%emt 0:02:44]} exf4 {[%emt 0:00:50]} 40. Rh8+ {[%emt 0:00:00]} Kf7 {[%emt 0:00:04]} 41. Rh7+ {[%emt 0:00:08]} Kg8 {[%emt 0:00:03]} 42. Rh8+ {[%emt 0:00:09]} Kf7 {[%emt 0:00:06]} 43. Rh7+ {[%emt 0:00:02]} Kg8 {[%emt 0:00:05]} 44. Rh8+ {[%emt 0:00:03]} Kf7 {[%emt 0:00:04]} 1/2-1/2

[Event "XVII MetLife Najdorf Open 2017"]
[Site "Warsaw"]
[Date "2017.07.16"]
[Round "8"]
[White "Fus, Jakub"]
[Black "Michalczak, Thomas"]
[Result "1-0"]
[ECO "A61"]
[WhiteElo "2103"]
[BlackElo "2239"]
[Annotator "NA"]
[PlyCount "49"]
[EventDate "2017.??.??"]
[EventType "swiss"]
[EventCountry "POL"]
[SourceTitle "playchess.com"]
[Source "ChessBase"]
[SourceQuality "1"]
[TimeControl "40/5400+30:1800+30"]

1. d4 {[%emt 0:00:00]} Nf6 {[%emt 0:00:07]} 2. c4 {[%emt 0:00:00]} c5 {[%emt 0:00:05]} 3. d5 {[%emt 0:00:14]} e6 {[%emt 0:00:05]} 4. Nc3 {[%emt 0:00:17]} exd5 {[%emt 0:00:06]} 5. cxd5 {[%emt 0:00:17]} d6 {[%emt 0:00:05]} 6. Nf3 {[%emt 0:00:22]} g6 {[%emt 0:00:07]} 7. h3 {[%emt 0:00:19]} Bg7 {[%emt 0:00:11]} 8. e4 {[%emt 0:00:21]} O-O {[%emt 0:00:06]} 9. Bd3 {[%emt 0:00:23]} b5 {[%emt 0:01:19]} 10. Nxb5 {[%emt 0:00:24]} Nxe4 {[%emt 0:03:23]} 11. O-O {[%emt 0:01:35]} a6 {[%emt 0:00:33]} 12. Nc3 {[%emt 0:08:23]} Nxc3 {[%emt 0:02:57]} 13. bxc3 {[%emt 0:01:52]} Nd7 {[%emt 0:18:36]} 14. Rb1 {[%emt 0:27:46]} Ne5 {[%emt 0:03:22]} 15. Nxe5 {[%emt 0:02:15]} Bxe5 {[%emt 0:00:09]} 16. Bh6 {[%emt 0:05:01]} Re8 {[%emt 0:00:29]} 17. Qd2 {[%emt 0:01:57]} c4 {[%emt 0:39:31]} 18. Bxc4 {[%emt 0:02:29]} Qc7 {[%emt 0:00:08]} 19. Bb3 {[%emt 0:08:16]} Qxc3 {[%emt 0:01:46]} 20. Qxc3 {[%emt 0:01:36]} Bxc3 {[%emt 0:00:02]} 21. Ba4 {[%emt 0:02:17]} Rd8 {[%emt 0:00:59]} 22. Bc6 {[%emt 0:00:40]} Ra7 {[%emt 0:00:11]} 23. Rb8 {[%emt 0:06:24]} Re7 {[%emt 0:05:09]} 24. Rc1 {[%emt 0:01:54]} Bd4 {[%emt 0:01:14]} 25. Ba4 {[%emt 0:01:59]} 1-0

[Event "XVII MetLife Najdorf Open 2017"]
[Site "Warsaw"]
[Date "2017.07.17"]
[Round "9"]
[White "Gumularz, Szymon"]
[Black "Fus, Jakub"]
[Result "1-0"]
[ECO "B40"]
[WhiteElo "2391"]
[BlackElo "2103"]
[Annotator "NA"]
[PlyCount "57"]
[EventDate "2017.??.??"]
[EventType "swiss"]
[EventCountry "POL"]
[SourceTitle "playchess.com"]
[Source "ChessBase"]
[SourceQuality "1"]
[TimeControl "40/5400+30:1800+30"]

1. e4 {[%emt 0:05:19]} c5 {[%emt 0:00:15]} 2. Nf3 {[%emt 0:00:07]} e6 {[%emt 0:00:20]} 3. d3 {[%emt 0:00:24]} a6 {[%emt 0:00:30]} 4. g3 {[%emt 0:00:38]} b5 {[%emt 0:00:28]} 5. Bg2 {[%emt 0:00:06]} Bb7 {[%emt 0:00:06]} 6. O-O {[%emt 0:00:12]} d5 {[%emt 0:00:25]} 7. exd5 {[%emt 0:07:27]} exd5 {[%emt 0:11:00]} 8. Re1+ {[%emt 0:02:37]} Be7 {[%emt 0:01:29]} 9. d4 {[%emt 0:02:16]} c4 {[%emt 0:05:22]} 10. Nh4 {[%emt 0:07:33]} g6 {[%emt 0:23:00]} 11. Nc3 {[%emt 0:04:32]} b4 {[%emt 0:06:42]} (11... Kf8 $16) 12. Na4 {[%emt 0:01:19]} Nd7 {[%emt 0:03:00]} 13. c3 {[%emt 0:07:15]} (13. Bg5 $18) 13... Kf8 {[%emt 0:09:40]} 14. Nf3 {[%emt 0:20:03]} Kg7 {[%emt 0:06:25]} 15. Ne5 $16 {[%emt 0:05:30]} Nxe5 {[%emt 0:06:32]} 16. dxe5 {[%emt 0:00:52]} Bc6 {[%emt 0:07:53]} 17. cxb4 {[%emt 0:04:44]} Bxb4 {[%emt 0:00:47]} 18. Nc3 {[%emt 0:01:49]} Bxc3 {[%emt 0:03:08]} 19. bxc3 {[%emt 0:00:46]} Qd7 {[%emt 0:00:10]} 20. Qd4 {[%emt 0:14:08]} Qe6 {[%emt 0:00:46]} 21. Qh4 {[%emt 0:00:14]} h6 {[%emt 0:03:54]} 22. Bh3 {[%emt 0:03:14]} Qe7 {[%emt 0:02:27]} 23. Qd4 {[%emt 0:00:25]} Qa7 {[%emt 0:00:42]} 24. Qf4 {[%emt 0:01:28]} Bd7 {[%emt 0:01:11]} 25. Be3 {[%emt 0:01:16]} Qc7 {[%emt 0:00:46]} 26. Bxd7 {[%emt 0:00:07]} Qxd7 {[%emt 0:00:07]} 27. e6 {[%emt 0:00:04]} fxe6 {[%emt 0:05:37]} 28. Bd4+ {[%emt 0:00:07]} Kh7 {[%emt 0:00:06]} 29. Qe5 {[%emt 0:00:19]} 1-0

[Event "XVII MetLife Najdorf Open 2017"]
[Site "Warsaw"]
[Date "2017.07.17"]
[Round "9"]
[White "Moehn, Hans"]
[Black "Dzierzak, Radoslaw"]
[Result "1/2-1/2"]
[ECO "E05"]
[WhiteElo "2380"]
[BlackElo "2231"]
[Annotator "NA"]
[PlyCount "170"]
[EventDate "2017.??.??"]
[EventType "swiss"]
[EventCountry "POL"]
[SourceTitle "playchess.com"]
[Source "ChessBase"]
[SourceQuality "1"]
[TimeControl "40/5400+30:1800+30"]

1. Nf3 Nf6 2. g3 d5 3. Bg2 e6 4. O-O Be7 5. c4 O-O 6. d4 dxc4 7. Qc2 a6 8. a4 Bd7 9. Rd1 Bc6 10. Nc3 Bxf3 11. Bxf3 Nc6 12. Bxc6 bxc6 13. Bg5 Qb8 14. Bxf6 gxf6 15. Ne4 Qb4 16. Rac1 f5 17. Nd2 c5 18. dxc5 $11 Rfd8 19. Nxc4 Qxc5 20. Ne3 Qxc2 21. Nxc2 Rxd1+ 22. Rxd1 Rb8 23. Rb1 Rb3 24. Nd4 Rb6 25. Nc2 Rb3 26. Nd4 Rb6 27. Nc2 Rc6 28. Ne3 Bg5 29. Kf1 Bxe3 30. fxe3 Rc4 31. Ke1 Rxa4 32. Kd2 Kf8 33. Rc1 Rb4 34. Kc3 Rb5 35. Ra1 a5 36. Ra4 e5 37. Rc4 c5 38. Ra4 Ke7 39. b3 Kd6 40. Rh4 Rb4 41. Rxh7 Ke6 42. Rh4 e4 43. Rh6+ f6 44. Rh8 a4 45. bxa4 Rxa4 46. Re8+ Kf7 47. Rb8 Ra2 48. Rb2 Ra1 49. Rb5 Rh1 50. h4 Rh3 51. Rxc5 Rxg3 52. Rxf5 Rxe3+ 53. Kd4 Rxe2 54. Rf4 e3 55. Re4 Kg6 56. Rxe3 Rg2 57. Ke4 Rg4+ 58. Kf3 Rxh4 59. Kg3 Kg5 60. Ra3 Rb4 61. Ra5+ f5 62. Ra3 Rb2 63. Rc3 Rb4 64. Ra3 Rg4+ 65. Kf3 Rh4 66. Kg3 f4+ 67. Kg2 Rh8 68. Ra7 Rb8 69. Rg7+ Kf6 70. Ra7 Kf5 71. Rf7+ Ke5 72. Re7+ Kf6 73. Ra7 Rb3 74. Kf2 Re3 75. Ra5 Re5 76. Rxe5 Kxe5 77. Kf3 Kf5 78. Kf2 Ke4 79. Ke2 f3+ 80. Kf2 Kf4 81. Kf1 Ke4 82. Kf2 Kf4 83. Kf1 Ke3 84. Ke1 f2+ 85. Kf1 Kf3 1/2-1/2

[Event "XVII MetLife Najdorf Open 2017"]
[Site "Warsaw"]
[Date "2017.07.17"]
[Round "9"]
[White "Teclaf, Pawel"]
[Black "Selbes, Tarik"]
[Result "0-1"]
[ECO "B08"]
[WhiteElo "2372"]
[BlackElo "2260"]
[Annotator "NA"]
[PlyCount "82"]
[EventDate "2017.??.??"]
[EventType "swiss"]
[EventCountry "POL"]
[SourceTitle "playchess.com"]
[Source "ChessBase"]
[SourceQuality "1"]
[TimeControl "40/5400+30:1800+30"]

1. d4 {[%emt 0:00:00]} g6 {[%emt 0:13:02]} 2. e4 {[%emt 0:01:16]} d6 {[%emt 0:00:14]} 3. Nc3 {[%emt 0:00:45]} Nf6 {[%emt 0:00:25]} 4. Nf3 {[%emt 0:03:47]} Bg7 {[%emt 0:00:08]} 5. h3 {[%emt 0:00:29]} O-O {[%emt 0:00:07]} 6. Be3 {[%emt 0:00:11]} a6 {[%emt 0:00:11]} 7. Bd3 {[%emt 0:03:23]} Nc6 {[%emt 0:00:42]} 8. Qd2 {[%emt 0:09:59]} Re8 {[%emt 0:05:12]} 9. O-O-O {[%emt 0:24:25]} e5 {[%emt 0:05:05]} 10. dxe5 {[%emt 0:09:56]} Nxe5 {[%emt 0:05:39]} 11. Nxe5 {[%emt 0:00:29]} dxe5 {[%emt 0:00:06]} 12. Qe2 {[%emt 0:09:02]} Qe7 {[%emt 0:03:22]} 13. Bg5 {[%emt 0:01:02]} c6 $1 {[%emt 0:02:17]} 14. Qe3 {[%emt 0:04:57]} b5 {[%emt 0:05:41]} 15. g4 {[%emt 0:01:39]} Qa7 $11 {[%emt 0:14:17]} 16. Qg3 {[%emt 0:03:06]} Be6 {[%emt 0:00:55]} 17. Kb1 {[%emt 0:02:16]} Nd7 {[%emt 0:10:25]} 18. Be3 {[%emt 0:00:51]} Qc7 {[%emt 0:01:14]} 19. g5 {[%emt 0:04:48]} Qa5 {[%emt 0:01:33]} 20. Kc1 {[%emt 0:03:38]} b4 {[%emt 0:00:33]} 21. Nb1 {[%emt 0:00:07]} Qxa2 {[%emt 0:01:04]} 22. Be2 {[%emt 0:00:52]} c5 {[%emt 0:01:50]} 23. Kd2 {[%emt 0:07:15]} Qxb2 {[%emt 0:00:47]} 24. Ke1 {[%emt 0:00:06]} Qxc2 {[%emt 0:00:43]} 25. h4 {[%emt 0:01:37]} Qxe4 {[%emt 0:02:25]} 26. Bf3 {[%emt 0:00:48]} Qc2 {[%emt 0:00:12]} 27. Rc1 {[%emt 0:01:13]} Qa2 {[%emt 0:03:18]} 28. h5 {[%emt 0:01:05]} e4 {[%emt 0:01:12]} 29. Be2 {[%emt 0:00:21]} gxh5 {[%emt 0:11:47]} 30. Rxh5 {[%emt 0:01:26]} Ne5 {[%emt 0:00:32]} 31. Kf1 {[%emt 0:01:09]} Nd3 {[%emt 0:00:56]} 32. Bxd3 {[%emt 0:00:11]} exd3 {[%emt 0:00:06]} 33. Nd2 {[%emt 0:00:02]} c4 {[%emt 0:01:10]} 34. Kg1 {[%emt 0:00:21]} Bd5 {[%emt 0:02:31]} 35. Qh3 {[%emt 0:01:44]} Rxe3 {[%emt 0:00:44]} 36. Qxe3 {[%emt 0:00:03]} c3 {[%emt 0:00:53]} 37. Ne4 {[%emt 0:01:24]} Qe2 {[%emt 0:00:24]} 38. Nf6+ {[%emt 0:01:27]} Bxf6 {[%emt 0:00:06]} 39. Qh3 {[%emt 0:00:05]} Bd4 {[%emt 0:00:25]} 40. Rf1 {[%emt 0:00:00]} Qf3 {[%emt 0:00:28]} 41. Qh2 {[%emt 0:00:28]} Be5 {[%emt 0:00:19]} 0-1